Workbook

Sheet Impedance 3ph-N
A1: Cable type | B1: Earth return path | C1: R, X | D1: Conductors | F1: Z1 | G1: Z0 | H1: Zn | I1: Zearth | J1: Zneutral | K1: Z0_SE | L1: Z0_N | M1: Z0/Z1 | N1: Z0_SE/Z1 | O1: Z0_N/Z1 | P1: r | Q1: d | R1: RS' | S1: r_sm | T1: ω | U1: μ0 | V1: δ
D2: Phase | E2: Neutral | F2: Ohm/km | G2: Ohm/km | H2: Ohm/km | I2: Ohm/km | J2: Ohm/km | K2: Ohm/km | L2: Ohm/km | M2: Ohm/km | N2: Ohm/km | O2: Ohm/km | P2: mm | Q2: mm | R2: Ohm/km | S2: mm | T2: 1/s | U2: Vs/Am | V2: m
A3: NYCWY 4x70/35 | B3: Earth/Sheath/N | C3: R | D3: 3 | E3: 1 | F3: 0.268 | G3: =K3 -> 1.241087245 | H3: =J3+I3 -> 0.592362415 | I3: =(K3-$F3)/3 -> 0.324362415 | J3: 0.268 | K3: =IMREAL(IMSUB(COMPLEX(F3+3*T3*U3/8*1000,T4*U4*1000/(2*PI())*(1/4+3*LN(V4*1000/((P4*Q4^2)^(1/3))))),IMPRODUCT(3,IMDIV(IMPRODUCT(COMPLEX(T3*U3/8*1000,T4*U4*1000/(2*PI())*(LN(V4*1000/S4))),COMPLEX(T3*U3/8*1000,T4*U4*1000/(2*PI())*(LN(V4*1000/S4)))),COMPLEX(R3+T3*U3/8*1000,T4*U4*1000/(2*PI())*(LN(V4*1000/S4))))))) -> 1.241087245 | L3: =4*F3 -> 1.072 | M3: =G3/F3 -> 4.630922555 | N3: =K3/$F3 -> 4.630922555 | O3: =L3/$F3 -> 4 | P3: 5.4 | Q3: 15.6 | R3: 0.51 | S3: 16.9 | T3: =2*PI()*50 -> 314.1592654 | U3: =1.257*10^-6 -> 1.257e-06 | V3: 932
B4: Earth/Sheath/N | C4: X | D4: 3 | E4: 1 | F4: =0.262*2*PI()*50/1000 -> 0.08230972752 | G4: =K4 -> 0.7806576009 | H4: 0.315092352 | I4: 0.2327826245 | J4: 0.08230972752 | K4: =IMAGINARY(IMSUB(COMPLEX(F3+3*T3*U3/8*1000,T4*U4*1000/(2*PI())*(1/4+3*LN(V4*1000/((P4*Q4^2)^(1/3))))),IMPRODUCT(3,IMDIV(IMPRODUCT(COMPLEX(T3*U3/8*1000,T4*U4*1000/(2*PI())*(LN(V4*1000/S4))),COMPLEX(T3*U3/8*1000,T4*U4*1000/(2*PI())*(LN(V4*1000/S4)))),COMPLEX(R3+T3*U3/8*1000,T4*U4*1000/(2*PI())*(LN(V4*1000/S4))))))) -> 0.7806576009 | L4: =4*F4 -> 0.3292389101 | M4: 9.484390538 | N4: 9.484390538 | O4: 4 | P4: 5.4 | Q4: 15.6 | R4: 0.51 | S4: 16.9 | T4: 314.1592654 | U4: 1.257e-06 | V4: 932
A7: Variable description
A8: Z1 | B8: positive sequence impedance | C8: Ohm/km
A9: Z0 | B9: zero sequence impedance | C9: Ohm/km
A10: Zn | B10: neutral earth loop impedance (Z_n = Z_NE) | C10: Ohm/km
A11: Zearth | B11: earth impedance | C11: Ohm/km
A12: Zneutral | B12: neutral impedance | C12: Ohm/km
A13: Z0_SE | B13: phase earth loop impedance (plus return via sheath) | C13: Ohm/km
A14: Z0_N | B14: phase neutral loop impedance | C14: Ohm/km
A15: Z0/Z1 | B15: ration zero sequence to positive sequence impedance | C15: Ohm/km
A16: Z0_SE/Z1 | B16: ration zero sequence (return via earth and sheath) to positive sequence impedance | C16: Ohm/km
A17: Z0_N/Z1 | B17: ration zero sequence (return via neutral) to positive sequence impedance | C17: Ohm/km
A18: r | B18: conductor radius | C18: mm
A19: d | B19: mean distance of the conductors to each other | C19: mm
A20: RS' | B20: resistance of the sheath/shield | C20: Ohm/km
A21: r_sm | B21: mean radius of the sheath/shield | C21: mm
A22: ω | B22: angular frequency | C22: 1/s
A23: μ0 | B23: magnetic constant | C23: Vs/Am
A24: δ | B24: earth current depth | C24: m

Sheet Impedance 3ph
A1: 3ph-N cable | B1: R1' | C1: ='Impedance 3ph-N'!F3 -> 0.268 | D1: Ohm/km | F1: X1' | G1: ='Impedance 3ph-N'!F4 -> 0.08230972752 | H1: Ohm/km | J1: Z1' | K1: =SQRT(C1^2+G1^2) -> 0.280354938 | L1: Ohm/km
B2: R0' | C2: ='Impedance 3ph-N'!G3 -> 1.241087245 | D2: Ohm/km | F2: X0' | G2: ='Impedance 3ph-N'!G4 -> 0.7806576009 | H2: Ohm/km | J2: Z0' | K2: =SQRT(C2^2+G2^2) -> 1.466193657 | L2: Ohm/km
A3: return path | B3: Rn' | C3: ='Impedance 3ph-N'!H3 -> 0.592362415 | D3: Ohm/km | F3: Xn' | G3: ='Impedance 3ph-N'!H4 -> 0.315092352 | H3: Ohm/km | J3: Zn' | K3: =SQRT(C3^2+G3^2) -> 0.6709518768 | L3: Ohm/km
A4: Earth/Sheath/N | B4: Rpn' | C4: ='Impedance 3ph-N'!I3 -> 0.324362415 | D4: Ohm/km | F4: Xpn' | G4: ='Impedance 3ph-N'!I4 -> 0.2327826245 | H4: Ohm/km | J4: Zpn' | K4: 0.3992477007 | L4: Ohm/km
B5: Rneutral' | C5: =C3-C4 -> 0.268 | D5: Ohm/km | F5: Xneutral' | G5: =G3-G4 -> 0.08230972752 | H5: Ohm/km | J5: Zneutral' | K5: 0.280354938 | L5: Ohm/km
A7: 3ph-Leitungen
A8: return path | B8: R1' | C8: =$C$1 -> 0.268 | D8: Ohm/km | F8: X1' | G8: =$G$1 -> 0.08230972752 | H8: Ohm/km | J8: Z1' | K8: =SQRT(C8^2+G8^2) -> 0.280354938 | L8: Ohm/km
A9: Earth/Sheath | B9: R0' | C9: =C1+3*C4 -> 1.241087245 | D9: Ohm/km | F9: X0' | G9: =G1+3*G4 -> 0.7806576009 | H9: Ohm/km | J9: Z0' | K9: =SQRT(C9^2+G9^2) -> 1.466193657 | L9: Ohm/km
A11: return path | B11: R1' | C11: =$C$1 -> 0.268 | D11: Ohm/km | F11: X1' | G11: =$G$1 -> 0.08230972752 | H11: Ohm/km | J11: Z1' | K11: =SQRT(C11^2+G11^2) -> 0.280354938 | L11: Ohm/km
A12: N | B12: R0' | C12: =C1+3*C5 -> 1.072 | D12: Ohm/km | F12: X0' | G12: =G1+3*G5 -> 0.3292389101 | H12: Ohm/km | J12: Z0' | K12: =SQRT(C12^2+G12^2) -> 1.121419752 | L12: Ohm/km
A14: return path | B14: R1' | C14: =$C$1 -> 0.268 | D14: Ohm/km | F14: X1' | G14: =$G$1 -> 0.08230972752 | H14: Ohm/km | J14: Z1' | K14: =SQRT(C14^2+G14^2) -> 0.280354938 | L14: Ohm/km
A15: Earth/Sheath/N | B15: R0' | C15: =IMREAL(IMSUM(COMPLEX($C$1,$G$1),IMPRODUCT(3,IMDIV(IMPRODUCT(COMPLEX($C$4,$G$4),COMPLEX($C$5,$G$5)),IMSUM(COMPLEX($C$4,$G$4),COMPLEX($C$5,$G$5)))))) -> 0.7225776836 | D15: Ohm/km | F15: X0' | G15: =IMAGINARY(IMSUM(COMPLEX($C$1,$G$1),IMPRODUCT(3,IMDIV(IMPRODUCT(COMPLEX($C$4,$G$4),COMPLEX($C$5,$G$5)),IMSUM(COMPLEX($C$4,$G$4),COMPLEX($C$5,$G$5)))))) -> 0.2916711276 | H15: Ohm/km | J15: Z0' | K15: =SQRT(C15^2+G15^2) -> 0.7792243294 | L15: Ohm/km

Sheet Short-circuit calculation
A1: 3ph-N cable | B1: R1' | C1: ='Impedance 3ph-N'!F3 -> 0.268 | D1: Ohm/km | F1: X1' | G1: ='Impedance 3ph-N'!F4 -> 0.08230972752 | H1: Ohm/km | J1: Z1' | K1: =COMPLEX(C1,G1) -> 0,268+0,0823097275240526i | L1: Ohm/km
B2: R0' | C2: ='Impedance 3ph-N'!G3 -> 1.241087245 | D2: Ohm/km | F2: X0' | G2: ='Impedance 3ph-N'!G4 -> 0.7806576009 | H2: Ohm/km | J2: Z0' | K2: =COMPLEX(C2,G2) -> 1,24108724486446+0,78065760091664i | L2: Ohm/km
A3: return path | B3: Rn' | C3: ='Impedance 3ph-N'!H3 -> 0.592362415 | D3: Ohm/km | F3: Xn' | G3: ='Impedance 3ph-N'!H4 -> 0.315092352 | H3: Ohm/km | J3: Zn' | K3: =COMPLEX(C3,G3) -> 0,59236241495482+0,315092351988248i | L3: Ohm/km
A4: Earth/Sheath/N | B4: Rpn' | C4: ='Impedance 3ph-N'!I3 -> 0.324362415 | D4: Ohm/km | F4: Xpn' | G4: ='Impedance 3ph-N'!I4 -> 0.2327826245 | H4: Ohm/km | J4: Zpn' | K4: =COMPLEX(C4,G4) -> 0,32436241495482+0,232782624464196i | L4: Ohm/km
B5: Rneutral' | C5: =C3-C4 -> 0.268 | D5: Ohm/km | F5: Xneutral' | G5: =G3-G4 -> 0.08230972752 | H5: Ohm/km | J5: Zneutral' | K5: =COMPLEX(C5,G5) -> 0,268+0,0823097275240526i | L5: Ohm/km
A7: Data
A8: c | B8: 1.05
A9: Un | B9: 0.4 | C9: kV
A11: Short-circuit | B11: Z1 | C11: Z2 | D11: Z0 | E11: Zk | F11: Ikss | G11: abs(Ikss) | H11: arg(Ikss)
A12: calculation | B12: Ohm | C12: Ohm | D12: Ohm | E12: Ohm | F12: kA | G12: kA | H12: deg
A13: 1PH-E | B13: =K1 -> 0,268+0,0823097275240526i | C13: =K1 -> 0,268+0,0823097275240526i | D13: =IMSUM(B13,IMPRODUCT(COMPLEX(3,0),K4)) -> 1,24108724486446+0,780657600916641i | E13: =IMSUM(B13,C13,D13) -> 1,77708724486446+0,945277055964746i | F13: =IMDIV(IMPRODUCT(COMPLEX($B$9,0),COMPLEX(SQRT(3),0),COMPLEX($B$8,0)),E13) -> 0,319075467324267-0,169724204174265i | G13: =IMABS(F13) -> 0.3614076083 | H13: =IMARGUMENT(F13)*180/PI() -> -28.00962613
A14: 1PH-N | B14: =K1 -> 0,268+0,0823097275240526i | C14: =K1 -> 0,268+0,0823097275240526i | D14: =IMSUM(B14,IMPRODUCT(COMPLEX(3,0),K5)) -> 1,072+0,329238910096211i | E14: =IMSUM(B14,C14,D14) -> 1,608+0,493858365144316i | F14: =IMDIV(IMPRODUCT(COMPLEX($B$9,0),COMPLEX(SQRT(3),0),COMPLEX($B$8,0)),E14) -> 0,413406253386871-0,126967746541093i | G14: =IMABS(F14) -> 0.4324644945 | H14: =IMARGUMENT(F14)*180/PI() -> -17.07307554
A15: 1PH-N-E | B15: =K1 -> 0,268+0,0823097275240526i | C15: =K1 -> 0,268+0,0823097275240526i | D15: =IMSUM(B15,IMPRODUCT(COMPLEX(3,0),IMDIV(IMPRODUCT(K4,K5),IMSUM(K4,K5)))) -> 0,722577683574151+0,291671127642337i | E15: =IMSUM(B15,C15,D15) -> 1,25857768357415+0,456290582690442i | F15: =IMDIV(IMPRODUCT(COMPLEX($B$9,0),COMPLEX(SQRT(3),0),COMPLEX($B$8,0)),E15) -> 0,510856467719208-0,185208269913714i | G15: =IMABS(F15) -> 0.543393443 | H15: -19.92784083
